Cogmind - Beta 15 @@@ ROGUE MODE // 2025.05.27 @ 00:32:13 Player: nado Result: Destroyed by C-17 Slicer with Blade Saw Performance ------------- Evolutions (4) 2000 Regions Visited (14) 2800 Robots Destroyed (251) 1255 Value Destroyed (8148) 8148 Prototype IDs (8) 160 Alien Tech Used (0) 0 Bonus (1259) 1259 TOTAL SCORE: 15622 Bonus ------- High Alert Combat Kills 238 Follower Combat Kills 89 Entered Garrisons 400 Met Imprinter 300 Acquired ECA 300 Friendly Fire -68 Cogmind --------- Core Integrity 0/850 Matter 127/300 Energy 98/100 System Corruption 1% Temperature Cool (0) Movement Core (50) Location -6/Garrison Parts ------- > --- POWER (1) -------- (None) > --- PROPULSION (6) --- (None) > --- UTILITY (5) ------ (None) > --- WEAPON (3) ------- (None) > --- INVENTORY (5) ---- Improved Heat Sink Improved Cooling System High-capacity Matter Pod (200) Particle Charger Shield Generator Peak State ------------ > --- POWER ------------ Improved Deuterium Engine > --- PROPULSION ------- Armored Treads Medium Treads Medium Treads Medium Treads Medium Treads > --- UTILITY ---------- Improved Cooling System Huge Storage Unit Hardened Light Armor Plating Hardlight Generator > --- WEAPON ----------- Plasma Cannon High-powered Shotgun Gauss Cannon > --- INVENTORY -------- Nuclear Core Light Nuclear Core Light Treads Light Treads Improved Treads Improved Cooling System Improved Cooling System High-capacity Storage Unit High-capacity Battery High-capacity Matter Pod Improved Terrain Scanner Seismic Detector Medium Armor Plating Hardened Light Armor Plating Hardened Medium Armor Plating Improved Medium Armor Plating Reactive Plating Shield Generator High-powered Tractor Beam Gatling Laser Plasma Cannon Plasma Cannon Rocket Launcher Mini Grenade Launcher [Rating: 50] Favorites ----------- Power Improved Deuterium Engine Engine Improved Deuterium Engine Power Core Light Nuclear Core Propulsion Light Treads Treads Light Treads Leg Improved Aluminum Leg Utility Huge Storage Unit Device Improved Cooling System Storage Huge Storage Unit Processor Target Analyzer Protection Hardened Light Armor Plating Weapon Autogun Energy Gun Gatling Laser Energy Cannon Heavy Ion Cannon Ballistic Gun Autogun Ballistic Cannon Gauss Cannon Launcher Mini Grenade Launcher Build | -11 -10 -10 -9 -9 -8 -8 -8 -7 -7 -7 -7 -6 -6 -6 ------- Run | Yrd Mat Min Mat Min Mat Gar Mat Fac Low Low Zio Pro Fac Gar Slots Evolved 8 | . . . 2 . 2 . . 2 . . . . 2 . Power . | . . . . . . . . . . . . . . . Propulsion 4 | . . . 1 . 1 . . 1 . . . . 1 . Utility 3 | . . . . . 1 . . 1 . . . . 1 . Weapon 1 | . . . 1 . . . . . . . . . . . Parts Attached 126 | . 14 2 21 . 35 1 19 13 6 7 . 1 7 . Power 17 | . 4 . 4 . 1 . 2 2 . 1 . . 3 . Engine 13 | . 3 . 4 . 1 . . 2 . 1 . . 2 . Core 4 | . 1 . . . . . 2 . . . . . 1 . Reactor . | . . . . . . . . . . . . . . . Propulsion 40 | . 6 . 7 . 13 1 6 2 4 1 . . . . Treads 31 | . . . 4 . 13 1 6 2 4 1 . . . . Leg 9 | . 6 . 3 . . . . . . . . . . . Wheel . | . . . . . . . . . . . . . . . Hover . | . . . . . . . . . . . . . . . Flight . | . . . . . . . . . . . . . . . Utility 33 | . 2 1 5 . 10 . 5 6 2 1 . . 1 . Device 11 | . . . . . 3 . 2 4 1 1 . . . . Storage 4 | . 2 . . . 2 . . . . . . . . . Processor 1 | . . . . . 1 . . . . . . . . . Hackware . | . . . . . . . . . . . . . . . Protection 17 | . . 1 5 . 4 . 3 2 1 . . . 1 . Artifact . | . . . . . . . . . . . . . . . Weapon 36 | . 2 1 5 . 11 . 6 3 . 4 . 1 3 . Energy Gun 6 | . . . 1 . 2 . . 1 . 1 . . 1 . Energy Cannon 6 | . . . . . 1 . . 1 . 3 . . 1 . Ballistic Gun 15 | . 2 . 4 . 5 . 3 . . . . . 1 . Ballistic Cannon 5 | . . . . . 1 . 3 . . . . 1 . . Launcher 4 | . . 1 . . 2 . . 1 . . . . . . Special Weapon . | . . . . . . . . . . . . . . . Impact Weapon . | . . . . . . . . . . . . . . . Slashing Weapon . | . . . . . . . . . . . . . . . Piercing Weapon . | . . . . . . . . . . . . . . . Special Melee Weapon . | . . . . . . . . . . . . . . . Unidentified Prototypes 4 | . . . 1 . 3 . . . . . . . . . Parts Lost 53 | . . . 1 . 4 . 8 6 8 6 . 3 17 . Power 5 | . . . . . 1 . . . . 1 . . 3 . Propulsion 19 | . . . . . 2 . 5 2 5 2 . 1 2 . Utility 13 | . . . 1 . 1 . 2 1 3 . . 1 4 . Weapon 16 | . . . . . . . 1 3 . 3 . 1 8 . Highest Loss Streak 15 | . . . 1 . 2 . 3 3 5 3 . 1 15 . To Critical Strikes 1 | . . . . . 1 . . . . . . . . . Average Backups 21 | 6 13 20 19 20 19 21 24 23 23 24 25 24 19 5 Power 2 | 1 1 1 1 1 . 1 1 2 3 4 4 4 3 . Propulsion 3 | 4 4 6 5 5 4 4 3 3 . . . . . . Utility 10 | . 3 4 6 7 9 12 12 13 13 14 15 15 12 5 Weapon 5 | 1 5 8 7 7 5 4 6 5 5 5 5 5 3 . Tool/Special . | . . . . . . . . . . . . . . . Unused Backups 54 | 6 6 1 9 . 6 . 9 2 . 1 . . 9 5 Power 5 | 1 . . 2 . . . . . . . . . 2 . Propulsion 12 | 2 3 . 5 . . . 2 . . . . . . . Utility 20 | 1 2 . . . . . 3 2 . 1 . . 6 5 Weapon 17 | 2 1 1 2 . 6 . 4 . . . . . 1 . Tool/Special . | . . . . . . . . . . . . . . . Average Slot Usage (%) 92 | . 85 99 99 100 99 100 99 98 96 85 84 77 47 . Engine 6 | . 4 . 10 11 9 9 1 6 7 6 7 7 4 . Core 3 | . 9 14 . . . . 7 . . . . . . . Treads 23 | . . . 12 33 35 36 35 37 34 24 23 19 4 . Leg 7 | . 28 28 20 . . . . . . . . . . . Device 8 | . . . . . 8 9 9 14 15 15 15 15 11 . Storage 9 | . 14 14 11 11 9 9 9 7 7 7 7 7 5 . Protection 7 | . . 13 10 11 8 9 9 6 6 7 7 4 3 . Energy Gun 3 | . 8 . 2 11 3 . . 4 7 7 . . 1 . Energy Cannon 7 | . . . . . 4 9 8 6 7 12 23 21 6 . Ballistic Gun 12 | . 19 27 29 22 18 9 9 2 . . . . 1 . Ballistic Cannon 2 | . . . . . 1 9 8 6 7 1 . 1 3 . Peak Build Rating 50 | 6 14 16 22 19 30 28 42 50 46 44 44 44 42 1 Average Rating 30 | 6 10 15 20 19 26 27 37 46 40 40 43 41 26 1 On Entrance 25 | 6 6 14 16 19 19 27 28 41 46 38 44 44 37 1 Naked Turns 61 | . . . . . . . . . . . . . 25 36 Heaviest Build 124 | 12 51 54 62 62 109 109 114 120 120 124 124 124 122 . Greatest Support 132 | 20 26 26 63 63 83 80 112 132 119 91 71 71 48 3 Greatest Overweight (x) 36 | . 2 2 2 . 1 1 1 1 1 2 1 2 36 . Average Overweight (x) . | . . 1 . . . 1 . . 1 1 1 1 2 . Largest Inventory Capacity 25 | 8 20 20 20 20 25 25 25 25 25 25 25 25 25 5 Average Capacity 22 | 8 15 20 20 20 20 25 25 25 25 25 25 25 23 5 Most Carried 25 | 8 20 20 20 20 20 23 25 25 25 25 25 25 24 5 Average Carried 21 | 6 13 19 19 20 19 21 24 23 23 24 24 24 19 5 Final Capacity 25 | 8 20 20 20 20 25 25 25 25 25 25 25 25 5 5 Final Carried 25 | 8 20 20 20 20 20 23 25 25 24 25 25 25 5 5 Class Distribution -------------------- 55% | Tank 22% | Scavenger-Tank 19% | Mutant Dominant Class ---------------- Mutant | -10/Materials Mutant | -10/Mines Tank | -9/Materials Tank | -9/Mines Scavenger-Tank | -8/Materials Scavenger-Tank | -8/Garrison Tank | -8/Materials Tank | -7/Factory Scavenger-Tank | -7/Lower Caves Tank | -7/Lower Caves Tank | -7/Zion Tank | -6/Proximity Caves Mutant | -6/Factory Mutant | -6/Garrison Resources | -11 -10 -10 -9 -9 -8 -8 -8 -7 -7 -7 -7 -6 -6 -6 ----------- Run | Yrd Mat Min Mat Min Mat Gar Mat Fac Low Low Zio Pro Fac Gar Matter Collected 6162 | 221 779 63 1339 146 1186 295 812 824 186 185 4 117 5 . Remotely 205 | . . . . . . . . 205 . . . . . . Salvage Created 9062 | 102 1152 99 1570 108 1721 444 1059 1284 335 551 . 416 221 . Parts 449 | 6 57 13 92 10 104 17 68 30 12 12 . 24 4 . Haulers Intercepted 15 | . 1 . 4 . 5 . 5 . . . . . . . Recyclers Shooed 10 | 1 2 1 2 . 1 . . 3 . . . . . . Parts Field Recycled . | . . . . . . . . . . . . . . . Retrieved Matter . | . . . . . . . . . . . . . . . Parts Self-Destructed 48 | . . . . . . . . . 9 15 4 20 . . Prevented . | . . . . . . . . . . . . . . . Kills | -11 -10 -10 -9 -9 -8 -8 -8 -7 -7 -7 -7 -6 -6 -6 ------- Run | Yrd Mat Min Mat Min Mat Gar Mat Fac Low Low Zio Pro Fac Gar Combat Hostiles Destroyed 192 | . 20 5 30 7 37 14 20 22 9 11 . 12 5 . Melee 1 | . . . . . 1 . . . . . . . . . Guns 106 | . 20 2 30 7 26 3 8 4 3 2 . . 1 . Cannons 60 | . . . . . 6 11 12 15 5 4 . 5 2 . AOE 19 | . . 3 . . 3 . . 2 . 4 . 6 1 . Classes Destroyed 17 | 2 5 . 4 . 1 1 . 2 1 1 . . . . Worker 9 | . 4 . 1 . 1 . 1 2 . . . . . . Builder 3 | . . . 1 . . . 1 . . . . . 1 . Tunneler 3 | 1 . 1 . . . . 1 . . . . . . . Hauler 15 | . 1 . 4 . 5 . 5 . . . . . . . Recycler 15 | 1 3 . 2 . 1 . 1 7 . . . . . . Mechanic 1 | . . . . . . . . . . 1 . . . . Operator 5 | . . . 1 . 2 . 1 1 . . . . . . Watcher 7 | . 2 . 3 . 1 . 1 . . . . . . . Swarmer 52 | . 3 3 11 7 14 4 3 . . . . 7 . . Grunt 82 | . 17 2 9 . 14 7 9 9 7 3 . 3 2 . Brawler 9 | . . . 1 . . . . 2 . 6 . . . . Duelist 2 | . . . . . . 1 . 1 . . . . . . Protector 1 | . . . . . . . . 1 . . . . . . Sentry 28 | . . . 9 . 7 . 7 3 . 1 . . 1 . Hunter 11 | . . . . . 2 2 1 3 . 1 . . 2 . Programmer 5 | . . . . . . . . 2 1 . . 2 . . Behemoth 2 | . . . . . . . . . 1 . . 1 . . Best Kill Streak 6 | 2 4 4 5 4 5 5 4 5 4 6 . 4 3 . Combat Bots Only 6 | . 4 3 4 4 5 5 4 4 4 6 . 4 2 . Max Kills in Single Turn 3 | 1 2 2 2 2 2 1 2 2 1 3 . 3 1 . Gunslinging 1 | . 1 . 1 1 1 . . . . . . . . . Exploded 3 | . . 2 . . 2 . . 1 . 2 . 3 1 . Melee 1 | . . . . . 1 . . . . . . . . . Uniques/NPCs Destroyed 1 | . . . . . . . . 1 . . . . . . 7R-MNS (-7/Factory) Combat | -11 -10 -10 -9 -9 -8 -8 -8 -7 -7 -7 -7 -6 -6 -6 -------- Run | Yrd Mat Min Mat Min Mat Gar Mat Fac Low Low Zio Pro Fac Gar Hostile Shots Fired 1277 | . 79 11 102 21 177 64 91 191 105 38 . 50 340 8 Missed 388 | . 19 4 24 7 48 16 27 37 31 5 . 23 145 2 Hits 889 | . 60 7 78 14 129 48 64 154 74 33 . 27 195 6 Melee 17 | . . . 3 . . 2 . 1 3 3 . . . 5 Projectile 872 | . 60 7 75 14 129 46 64 153 71 30 . 27 195 1 AOE 1 | . . . . . . . . . . . . . . 1 Critical Strikes 30 | . 2 . 4 . 4 3 1 3 3 2 . 2 3 3 Damage Taken 11392 | . 676 154 915 110 1641 724 906 1980 995 648 . 544 1973 126 Core 1611 | . 160 12 105 12 184 13 64 79 9 52 . 57 738 126 Absorbed by Shields 726 | . . . . . . . . 412 242 63 . . . 9 Ignored by Resistances 192 | . . . . . . . . . . . . . 192 . Regen/Repaired (Parts) 487 | . . . 289 . . . 198 . . . . . . . Core Remaining (%) 64 | 100 . 31 . 70 . . 52 . . . . 71 . . Volleys Fired 556 | 7 77 8 97 13 96 41 51 77 25 18 . 18 28 . Largest 3 | 2 2 2 3 3 3 3 3 3 3 3 . 3 3 . Hottest 214 | 70 70 46 102 102 133 133 148 200 200 214 . 210 167 . Shots Fired 1442 | 14 154 12 292 35 254 95 153 211 69 49 . 46 58 . Gun 945 | 14 154 8 292 35 223 26 54 67 21 26 . . 25 . Cannon 468 | . . . . . 29 69 99 136 48 18 . 40 29 . Launcher 29 | . . 4 . . 2 . . 8 . 5 . 6 4 . Special . | . . . . . . . . . . . . . . . Kinetic 895 | 7 93 8 273 26 187 54 102 94 24 2 . . 25 . Thermal 518 | 7 61 . 19 9 65 41 51 109 45 42 . 40 29 . Explosive 29 | . . 4 . . 2 . . 8 . 5 . 6 4 . Electromagnetic . | . . . . . . . . . . . . . . . Robot Hit Streak 26 | 3 8 2 13 4 15 19 26 19 11 14 . 6 14 . Robot Miss Streak 7 | 2 4 4 4 4 3 5 7 4 3 3 . 3 3 . Penetration Max 1 | . . . . . . 1 . 1 . . . . . . Secondary Targets 10 | . 2 . 4 2 2 . . . . . . . . . Max Gunslinging Chain 1 | . 1 . 1 1 1 . . . . . . . . . Shots Hit Robots 946 | 8 95 6 188 16 159 57 104 151 53 39 . 23 47 . Core Hits 454 | 3 50 9 60 7 65 21 73 85 21 27 . 15 18 . Critical Kills 3 | . . . . . 2 . . . . . . 1 . . Critical Parts Destroyed 5 | . . . . . 3 1 1 . . . . . . . Critical Strikes 24 | . 6 . 1 . 5 3 1 5 2 . . 1 . . Burn 7 | . 6 . 1 . . . . . . . . . . . Meltdown 3 | . . . . . 2 . . . . . . 1 . . Destroy 5 | . . . . . 3 1 1 . . . . . . . Blast 9 | . . . . . . 2 . 5 2 . . . . . Melee Attacks . | . . . . . . . . . . . . . . . Impact . | . . . . . . . . . . . . . . . Slashing . | . . . . . . . . . . . . . . . Piercing . | . . . . . . . . . . . . . . . Sneak Attacks . | . . . . . . . . . . . . . . . Combat Hostiles . | . . . . . . . . . . . . . . . Follow-up Attacks . | . . . . . . . . . . . . . . . Damage Inflicted 21131 | 100 1425 350 2973 238 3063 1294 2407 4241 1355 1436 . 1167 1082 . Guns 10345 | 100 1289 88 2926 238 2241 301 719 1185 499 453 . . 306 . Cannons 7479 | . . . . . 490 993 1484 2120 856 317 . 648 571 . Explosions 2790 | . . 207 . . 239 . 112 852 . 666 . 519 195 . Melee . | . . . . . . . . . . . . . . . Ramming 517 | . 136 55 47 . 93 . 92 84 . . . . 10 . Kinetic 10101 | 64 796 88 2722 149 1899 844 1428 1311 449 21 . . 330 . Thermal 7938 | 36 493 . 204 89 832 450 775 2209 906 749 . 648 547 . Explosive 2463 | . . 207 . . 239 . . 637 . 666 . 519 195 . Electromagnetic 112 | . . . . . . . 112 . . . . . . . Impact . | . . . . . . . . . . . . . . . Slashing . | . . . . . . . . . . . . . . . Piercing . | . . . . . . . . . . . . . . . Highest Corruption 3 | . . . 1 1 2 2 3 . . . . 1 1 1 Average Corruption 1 | . . . 1 1 2 2 2 . . . . 1 1 1 Corruption Purged . | . . . . . . . . . . . . . . . Corruption Blocked . | . . . . . . . . . . . . . . . Effects 97 | . . . 5 7 30 8 44 . . . . 2 1 . Message Errors 28 | . . . 1 2 12 1 12 . . . . . . . Matter Fused 28 | . . . 2 2 7 2 13 . . . . 1 1 . Heat Flow Errors 13 | . . . . 1 4 . 8 . . . . . . . Energy Discharges 4 | . . . 1 . 1 1 . . . . . 1 . . Parts Rejected 1 | . . . . . 1 . . . . . . . . . Parts Fused 2 | . . . . . 1 . 1 . . . . . . . Data Loss (minor) 11 | . . . . 1 2 1 7 . . . . . . . Data Loss (major) 4 | . . . . . 1 2 1 . . . . . . . Misfires 2 | . . . 1 1 . . . . . . . . . . Alerts 3 | . . . . . 1 . 2 . . . . . . . Weapon Failures 1 | . . . . . . 1 . . . . . . . . Overload Shots . | . . . . . . . . . . . . . . . Overflow Damage 297 | . . . . . 7 9 31 140 7 41 . 54 8 . Projectiles 80 | . . . . . . 9 6 49 7 . . 1 8 . Explosions 193 | . . . . . 7 . 1 91 . 41 . 53 . . Melee 24 | . . . . . . . 24 . . . . . . . Knockbacks 41 | . . 1 1 . 4 3 8 17 2 . . . 5 . Impact 5 | . . 1 1 . 1 . 1 . . . . . 1 . Kinetic 35 | . . . . . 2 3 7 17 2 . . . 4 . Secondary 1 | . . . . . 1 . . . . . . . . . Self-Inflicted Damage 468 | . . 82 . . . . 15 318 . . . 48 5 . Shots 10 | . . 3 . . . . 1 5 . . . 1 . . Rammed 28 | . . . 4 . 10 . 4 6 1 . . . 3 . Targets Rammed 62 | . 19 10 6 . 11 . 5 7 1 . . . 3 . Kicked 30 | . 19 10 1 . . . . . . . . . . . Crushed 4 | . . . 1 . 1 . 1 1 . . . . . . Highest Temperature 654 | 27 294 31 386 250 654 393 257 401 239 225 . 221 298 . Average Temperature 101 | 12 70 17 78 128 127 164 82 123 80 110 . 86 124 . Received Heat Transfer 3432 | . 378 27 246 . 513 198 351 533 350 114 . 377 345 . Effects 33 | . . . 1 1 20 2 . 5 4 . . . . . Shutdowns 3 | . . . . . 2 . . 1 . . . . . . Energy Bleed 4 | . . . . . 3 . . 1 . . . . . . Interference 13 | . . . . 1 4 2 . 2 4 . . . . . Matter Decay 2 | . . . 1 . 1 . . . . . . . . . Short Circuit 2 | . . . . . 1 . . 1 . . . . . . Damage (minor) 3 | . . . . . 3 . . . . . . . . . Damage (major) 5 | . . . . . 5 . . . . . . . . . Damage (core) 1 | . . . . . 1 . . . . . . . . . Siege Activations . | . . . . . . . . . . . . . . . Martial Activations . | . . . . . . . . . . . . . . . Shielding Activations . | . . . . . . . . . . . . . . . Robots Disrupted . | . . . . . . . . . . . . . . . Combat Hostiles . | . . . . . . . . . . . . . . . Robots Corrupted 1 | . . . . . . . 1 . . . . . . . Combat Hostiles . | . . . . . . . . . . . . . . . Parts Fried 5 | . . . . . . . 5 . . . . . . . Impact Corruptions 1 | . . . . . . . 1 . . . . . . . Robots Melted 7 | . . . . . 2 . . 1 1 1 . 1 1 . Combat Hostiles 6 | . . . . . 1 . . 1 1 1 . 1 1 . Parts Melted 27 | . 5 . 1 . 3 . 1 6 6 1 . 2 2 . Heat Transferred 15858 | 111 1924 . 592 222 1702 777 1332 3893 1825 1390 . 981 1109 . Parts Sabotaged . | . . . . . . . . . . . . . . . Parts Stolen . | . . . . . . . . . . . . . . . Parts Stripped . | . . . . . . . . . . . . . . . Power Chain Reactions . | . . . . . . . . . . . . . . . Alert | -11 -10 -10 -9 -9 -8 -8 -8 -7 -7 -7 -7 -6 -6 -6 ------- Run | Yrd Mat Min Mat Min Mat Gar Mat Fac Low Low Zio Pro Fac Gar Maximum Alert Level 3 | . . . 1 . 2 3 2 2 . . . . . . Low Security (%) 68 | 100 100 100 56 100 49 24 55 55 . . . . 100 100 Level 1 26 | . . . 43 . 49 17 34 40 . . . . . . Level 2 4 | . . . . . . 34 10 3 . . . . . . Level 3 1 | . . . . . . 24 . . . . . . . . Level 4 . | . . . . . . . . . . . . . . . Level 5 . | . . . . . . . . . . . . . . . High Security . | . . . . . . . . . . . . . . . Max Security . | . . . . . . . . . . . . . . . Peak Influence 773 | 5 186 97 392 96 424 773 458 423 . . . . 65 14 Initial 376 | . 3 36 3 96 12 149 376 109 . . . . 39 14 Average 152 | 2 81 18 154 25 188 454 212 176 . . . . 20 14 Influence Increases 6256 | 10 613 147 945 160 1177 644 807 816 220 245 . 297 175 . Destroy 0b10 Robot/C 3900 | . 400 100 600 140 740 380 400 400 180 220 . 240 100 . Destroy 0b10 Robot/NC 295 | 10 50 5 60 . 50 . 55 55 . 5 . . 5 . Destroy Leader 894 | . 76 20 174 20 192 30 142 100 40 20 . 50 30 . Allied During Kill 16 | . . . . . . 9 . . . . . 7 . . Successful Hack 148 | . 25 . 30 . 24 7 38 . . . . . 24 . Select Force Hacks 60 | . . . 30 . . . 30 . . . . . . . Disable Machine 345 | . . . 15 . 90 . 105 135 . . . . . . Anti-Garrison Action 150 | . . . . . . 150 . . . . . . . . Destroy Structure 193 | . 2 22 6 . 21 8 7 111 . . . . 16 . Lose Combat Pursuer 255 | . 60 . 30 . 60 60 30 15 . . . . . . Influence Decreases 6242 | 5 524 230 709 375 979 101 1338 643 635 228 17 233 219 6 Entered New Map 1052 | . 2 58 8 151 20 81 397 133 154 . 17 . 25 6 Time Decay 4205 | 5 512 172 541 224 629 . 711 460 421 198 . 223 109 . Lost Part 355 | . . . 10 . 30 . 80 50 60 30 . 10 85 . Lost Ally 30 | . 10 . . . . 20 . . . . . . . . Purge Threat 600 | . . . 150 . 300 . 150 . . . . . . . Squads Dispatched 34 | . 4 . 3 . 6 . 6 10 . 1 . . 4 . Investigation 13 | . 3 . 2 . 4 . 1 2 . . . . 1 . Extermination 3 | . . . . . . . . 3 . . . . . . Reinforcement 11 | . 1 . 1 . 1 . 4 3 . . . . 1 . Assault 3 | . . . . . . . . 2 . 1 . . . . Garrison 4 | . . . . . 1 . 1 . . . . . 2 . Intercept . | . . . . . . . . . . . . . . . Searches Triggered . | . . . . . . . . . . . . . . . Construction Impeded 3 | . . . . . . . . 2 . . . . 1 . Haulers Reinforced . | . . . . . . . . . . . . . . . Active Scanning Responses . | . . . . . . . . . . . . . . . Cargo Convoy Interrupts . | . . . . . . . . . . . . . . . Stealth | -11 -10 -10 -9 -9 -8 -8 -8 -7 -7 -7 -7 -6 -6 -6 --------- Run | Yrd Mat Min Mat Min Mat Gar Mat Fac Low Low Zio Pro Fac Gar Distress Signals 17 | . 5 . 2 . 5 . 3 2 . . . . . . Communications Jammed . | . . . . . . . . . . . . . . . Distress Signals . | . . . . . . . . . . . . . . . Times Spotted 306 | . 34 5 46 7 59 23 30 48 12 14 . 12 13 3 Peak Tracking Total 9 | . 6 3 6 4 9 5 5 6 4 9 . 4 8 4 Tactical Retreats 15 | . 4 . 2 . 3 3 2 1 . . . . . . Traps | -11 -10 -10 -9 -9 -8 -8 -8 -7 -7 -7 -7 -6 -6 -6 ------- Run | Yrd Mat Min Mat Min Mat Gar Mat Fac Low Low Zio Pro Fac Gar Traps Triggered 7 | . 1 . . . 2 3 . . . . . . . 1 Indirectly . | . . . . . . . . . . . . . . . Trap Hack Attempts . | . . . . . . . . . . . . . . . Triggered . | . . . . . . . . . . . . . . . Disarmed . | . . . . . . . . . . . . . . . Reprogrammed . | . . . . . . . . . . . . . . . Reused . | . . . . . . . . . . . . . . . Traps Extracted . | . . . . . . . . . . . . . . . Installed . | . . . . . . . . . . . . . . . Triggered . | . . . . . . . . . . . . . . . Machines | -11 -10 -10 -9 -9 -8 -8 -8 -7 -7 -7 -7 -6 -6 -6 ---------- Run | Yrd Mat Min Mat Min Mat Gar Mat Fac Low Low Zio Pro Fac Gar Machines Disabled 25 | . . . 1 . 6 2 7 9 . . . . . . Max in Single Turn 4 | . . . 1 . 1 1 1 4 . . . . . . Garrison Access 2 | . . . . . . . 1 1 . . . . . . Garrison Relay 2 | . . . . . . 2 . . . . . . . . Machines Repaired . | . . . . . . . . . . . . . . . Machines Dismantled . | . . . . . . . . . . . . . . . Machines Sabotaged . | . . . . . . . . . . . . . . . Overloaded Fab Kills . | . . . . . . . . . . . . . . . Hacking | -11 -10 -10 -9 -9 -8 -8 -8 -7 -7 -7 -7 -6 -6 -6 --------- Run | Yrd Mat Min Mat Min Mat Gar Mat Fac Low Low Zio Pro Fac Gar Machines Accessed 48 | . 7 . 12 . 9 2 14 3 . . . . 1 . Terminals 38 | . 7 . 9 . 8 2 11 1 . . . . . . Fabricators 2 | . . . . . . . . 2 . . . . . . Repair Stations 3 | . . . 2 . . . 1 . . . . . . . Recycling Units 2 | . . . 1 . . . 1 . . . . . . . Scanalyzers . | . . . . . . . . . . . . . . . Garrison Access 3 | . . . . . 1 . 1 . . . . . 1 . Total Hacks 121 | . 22 . 28 . 25 4 32 7 . . . . 3 . Successful 65 | . 8 . 19 . 13 1 20 3 . . . . 1 . Failed 55 | . 13 . 9 . 12 3 12 4 . . . . 2 . Catastrophic 15 | . 5 . . . 4 2 2 1 . . . . 1 . Database Lockouts 1 | . 1 . . . . . . . . . . . . . Manual 88 | . 21 . 21 . 23 . 22 1 . . . . . . Terminals 94 | . 22 . 17 . 24 4 26 1 . . . . . . Fabricators 6 | . . . . . . . . 6 . . . . . . Repair Stations 13 | . . . 9 . . . 4 . . . . . . . Recycling Units 3 | . . . 2 . . . 1 . . . . . . . Scanalyzers . | . . . . . . . . . . . . . . . Garrison Access 5 | . . . . . 1 . 1 . . . . . 3 . Terminal Hacks 13 | . 2 . 3 . 4 1 3 . . . . . . . Part Schematic 1 | . 1 . . . . . . . . . . . . . Robot Analysis 3 | . . . 1 . 2 . . . . . . . . . Prototype ID Bank 2 | . . . . . . . 2 . . . . . . . Open Door 1 | . . . . . . 1 . . . . . . . . Branch Access Points 1 | . . . 1 . . . . . . . . . . . Alert Level 1 | . 1 . . . . . . . . . . . . . Unreport Threat 4 | . . . 1 . 2 . 1 . . . . . . . Fabricator Hacks 3 | . . . . . . . . 3 . . . . . . Load Schematic 2 | . . . . . . . . 2 . . . . . . Build 1 | . . . . . . . . 1 . . . . . . Repair Station Hacks 11 | . . . 7 . . . 4 . . . . . . . Scan Component 6 | . . . 4 . . . 2 . . . . . . . Repair 5 | . . . 3 . . . 2 . . . . . . . Recycling Unit Hacks . | . . . . . . . . . . . . . . . Scanalyzer . | . . . . . . . . . . . . . . . Garrison Access Hacks 3 | . . . . . 1 . 1 . . . . . 1 . Unlock Access 2 | . . . . . 1 . . . . . . . 1 . Seal Access 1 | . . . . . . . 1 . . . . . . . Unauthorized Hacks 35 | . 6 . 9 . 8 . 12 . . . . . . . Terminals 33 | . 6 . 8 . 8 . 11 . . . . . . . Assimilate 1 | . 1 . . . . . . . . . . . . . Botnet 5 | . . . 1 . 1 . 3 . . . . . . . Skim 27 | . 5 . 7 . 7 . 8 . . . . . . . Fabricators . | . . . . . . . . . . . . . . . Repair Stations . | . . . . . . . . . . . . . . . Recycling Units 2 | . . . 1 . . . 1 . . . . . . . Tunnel 2 | . . . 1 . . . 1 . . . . . . . Scanalyzers . | . . . . . . . . . . . . . . . Garrison Access . | . . . . . . . . . . . . . . . Data Cores Recovered 4 | . . . 1 . 2 . . 1 . . . . . . Used 2 | . . . 1 . 1 . . . . . . . . . Hacking Detections 35 | . 7 . 5 . 7 2 10 3 . . . . 1 . Full Trace Events 14 | . 4 . 2 . 3 1 1 2 . . . . 1 . Feedback Events 1 | . . . 1 . . . . . . . . . . . Corruption 1 | . . . 1 . . . . . . . . . . . Feedback Blocked . | . . . . . . . . . . . . . . . Robot Schematics Acquired 3 | . . . . . . . . . . . 3 . . . Robots Built . | . . . . . . . . . . . . . . . Authchips . | . . . . . . . . . . . . . . . Time . | . . . . . . . . . . . . . . . Total Robot Build Rating . | . . . . . . . . . . . . . . . Part Schematics Acquired 13 | . 1 . . . . . . . . . 12 . . . Parts Built 1 | . . . . . . . . 1 . . . . . . Authchips . | . . . . . . . . . . . . . . . Time 51 | . . . . . . . . 51 . . . . . . Total Part Build Rating 1 | . . . . . . . . 1 . . . . . . Parts Repaired 5 | . . . 3 . . . 2 . . . . . . . Time 185 | . . . 108 . . . 77 . . . . . . . Parts Recycled . | . . . . . . . . . . . . . . . Recycled Matter . | . . . . . . . . . . . . . . . Retrieved Matter . | . . . . . . . . . . . . . . . Retrieved Components . | . . . . . . . . . . . . . . . Parts Scanalyzed . | . . . . . . . . . . . . . . . Part Schematics Acquired . | . . . . . . . . . . . . . . . Parts Damaged . | . . . . . . . . . . . . . . . Bothacking | -11 -10 -10 -9 -9 -8 -8 -8 -7 -7 -7 -7 -6 -6 -6 ------------ Run | Yrd Mat Min Mat Min Mat Gar Mat Fac Low Low Zio Pro Fac Gar Used RIF Installer . | . . . . . . . . . . . . . . . Robots Hacked . | . . . . . . . . . . . . . . . Non-combat . | . . . . . . . . . . . . . . . Combat . | . . . . . . . . . . . . . . . Robot Hacks Applied . | . . . . . . . . . . . . . . . Relay Couplers Released 10 | . . . . . . 9 . 1 . . . . . . Machine Destruction 10 | . . . . . . 9 . 1 . . . . . . Fabnet Peak Effective % . | . . . . . . . . . . . . . . . Robots Rewired 2 | . . . . . . . . . . 2 . . . . Allies Hacked . | . . . . . . . . . . . . . . . Hacks Repelled . | . . . . . . . . . . . . . . . Allies | -11 -10 -10 -9 -9 -8 -8 -8 -7 -7 -7 -7 -6 -6 -6 -------- Run | Yrd Mat Min Mat Min Mat Gar Mat Fac Low Low Zio Pro Fac Gar Total Allies 5 | . 1 . . 1 . 1 . . . 2 . . . . Largest Group 2 | . 1 . . 1 . 1 . . . 2 2 2 . . Highest-Rated Group 46 | . 10 . . 31 . 39 . . . 46 46 46 . . Highest-Rated Ally 39 | . 10 . . 31 . 39 . . . 30 30 30 . . Initial Warlord ECA Mod 6 | . . . . . . . 2 1 1 1 1 . . . Total Orders . | . . . . . . . . . . . . . . . Ally Attacks 25 | . . . . . . 18 . . . . . 7 . . Total Damage 318 | . . . . . . 213 . . . . . 105 . . Kills 5 | . . . . . . 5 . . . . . . . . Allies Corrupted . | . . . . . . . . . . . . . . . Allies Melted . | . . . . . . . . . . . . . . . Intel | -11 -10 -10 -9 -9 -8 -8 -8 -7 -7 -7 -7 -6 -6 -6 ------- Run | Yrd Mat Min Mat Min Mat Gar Mat Fac Low Low Zio Pro Fac Gar Active Infowar (turns) 2161 | . . . . . . . . 864 531 621 . . 145 . Terrain 661 | . . . . . . . . 661 . . . . . . Seismic 1500 | . . . . . . . . 203 531 621 . . 145 . Robot Analysis Total 3 | . . . 1 . 2 . . . . . . . . . Derelict Logs Recovered 10 | . . 1 . 2 . . . . 1 1 2 3 . . Drone Launches . | . . . . . . . . . . . . . . . Drone Recoveries . | . . . . . . . . . . . . . . . Exploration | -11 -10 -10 -9 -9 -8 -8 -8 -7 -7 -7 -7 -6 -6 -6 ------------- Run | Yrd Mat Min Mat Min Mat Gar Mat Fac Low Low Zio Pro Fac Gar Turns Passed 23401 | 59 2473 1593 2661 1187 2663 887 3210 1544 1543 1387 2328 1524 306 36 Spaces Moved 10312 | 29 1276 601 1202 515 1349 322 1595 700 591 514 953 533 80 52 Core 99 | . . . . . . . . . . . . . 47 52 Treads 7628 | . . . 523 515 1349 322 1595 700 591 514 953 533 33 . Legs 2585 | 29 1276 601 679 . . . . . . . . . . . Wheels . | . . . . . . . . . . . . . . . Hover . | . . . . . . . . . . . . . . . Flight . | . . . . . . . . . . . . . . . Fastest Speed 50 | 120 120 190 160 160 160 240 160 160 240 240 243 243 50 50 Average Speed 196 | 120 161 256 177 160 167 240 172 167 240 241 243 275 260 50 Slowest Speed 1850 | 120 260 260 260 160 240 240 240 242 242 320 243 325 1850 50 Overloaded Moves . | . . . . . . . . . . . . . . . Propulsion Burnouts . | . . . . . . . . . . . . . . . Robots Hopped . | . . . . . . . . . . . . . . . Potential Cave-ins . | . . . . . . . . . . . . . . . Cave-ins Triggered . | . . . . . . . . . . . . . . . Exploration Rate (%) 60 | 4 100 98 87 95 84 35 94 19 64 66 86 64 3 7 Regions Visited 14 Branch Regions 6 Pre-discovered Areas 13 | . . 2 1 1 4 . 2 . 1 . 1 1 . . Known Exits Taken 6 | . . . 1 . 1 . 1 1 . . . 1 1 . Unknown Exits Taken 7 | 1 1 1 . 1 . . . . 1 1 1 . . . Scrap Searched 10 | . . 1 . 1 . . . . 1 3 1 3 . . Spaces Dug 28 | . . . . . . . . 28 . . . . . . Terrain Destroyed 300 | . . 39 . . 12 1 4 138 5 37 . 47 17 . Melee . | . . . . . . . . . . . . . . . Projectile 31 | . . . . . 3 1 4 6 5 3 . 8 1 . AOE 269 | . . 39 . . 9 . . 132 . 34 . 39 16 . Terrain Rammed . | . . . . . . . . . . . . . . . Walls Destroyed . | . . . . . . . . . . . . . . . Machines Disabled . | . . . . . . . . . . . . . . . Actions | -11 -10 -10 -9 -9 -8 -8 -8 -7 -7 -7 -7 -6 -6 -6 --------- Run | Yrd Mat Min Mat Min Mat Gar Mat Fac Low Low Zio Pro Fac Gar Total 12442 | 39 1538 627 1578 853 1608 371 1959 889 652 614 967 556 129 62 Wait 1079 | 2 118 . 200 326 72 . 230 62 18 31 13 . 7 . Move 10300 | 28 1275 600 1201 514 1349 321 1594 699 591 513 952 532 79 52 Hop . | . . . . . . . . . . . . . . . Pick Up 98 | 2 14 3 17 . 11 2 23 11 8 5 1 1 . . Fast Attach 43 | . 6 1 11 . 10 . 10 2 . 2 . . 1 . Attach 46 | . . . 4 . 6 . 8 7 7 4 . 1 9 . Detach 12 | . 3 . . . 3 . 5 . . . . . 1 . Swap 81 | . 9 2 10 . 21 1 6 18 1 9 . 4 . . Drop 120 | . 17 3 32 . 29 . 27 6 2 2 1 . 1 . Fire 556 | 7 77 8 97 13 96 41 51 77 25 18 . 18 28 . Melee . | . . . . . . . . . . . . . . . Ram 3 | . . . . . . . . . . . . . 3 . Kick 30 | . 19 10 1 . . . . . . . . . . . Crush 28 | . . . 5 . 11 . 5 7 . . . . . . Escape Stasis 16 | . . . . . . 6 . . . . . . . 10 Rewire 30 | . . . . . . . . . . 30 . . . . Trap . | . . . . . . . . . . . . . . . Miscellaneous . | . . . . . . . . . . . . . . . Route ------- -11/Scrapyard -10/Materials (discovered 5 exits: *Mat x3 / [*Min] / [*Sub]) -10/Mines (discovered 2 exits: *Mat x2) -9/Materials (discovered 5 exits: *Mat x3 / *Min x2) -9/Mines (discovered 2 exits: *Mat / [*Zio]) -8/Materials (discovered 4 exits: *Fac x3 / Gar) -8/Garrison -8/Materials (discovered 3 exits: *Fac x3) -7/Factory (discovered 6 exits: *Fac x3 / Sto / *Low x2) -7/Lower Caves -7/Lower Caves -7/Zion -6/Proximity Caves -6/Factory (discovered 6 exits: Fac x3 / Low x2 / Gar) -6/Garrison History --------- Turn | Location | Event 1 | -11/Scrapyard | Discovered new exit (range 3) 60 | -11/Scrapyard | Entered Materials 316 | -10/Materials | Build established: Mutant 528 | -10/Materials | Discovered new exit (range 7) 652 | -10/Materials | Central database locked down 1178 | -10/Materials | Discovered new exit (range 13) 1467 | -10/Materials | Discovered new exit (range 8) 1795 | -10/Materials | Discovered new exit (range 6) 1919 | -10/Materials | Core integrity fell below 50% 1953 | -10/Materials | Discovered new exit (range 6) 2533 | -10/Materials | Entered Mines 2901 | -10/Mines | Learned location of Storage (-7) 2920 | -10/Mines | Discovered new exit (range 13) 3445 | -10/Mines | Received a Rocket Launcher from a helpful Derelict 3566 | -10/Mines | Discovered new exit (range 15) 4126 | -10/Mines | Entered Materials 4126 | -9/Materials | Evolved 2 slots: Propulsion x1, Weapon x1 4271 | -9/Materials | Discovered new exit (range 16) 4419 | -9/Materials | Build established: Tank 4426 | -9/Materials | Loaded intel: 9 trap records 4453 | -9/Materials | Identified exit to Mines 4466 | -9/Materials | Learned Storage stockpile data 4496 | -9/Materials | Learned location of 1 exit from Storage 4527 | -9/Materials | Learned 2 Storage zone layouts 4547 | -9/Materials | Learned Storage garrison access intel 4575 | -9/Materials | Learned Storage terminal intel 4611 | -9/Materials | Learned Storage emergency access door positions 5048 | -9/Materials | Discovered new exit (range 10) 5219 | -9/Materials | Repaired Autogun 5253 | -9/Materials | Repaired Autogun 5650 | -9/Materials | Discovered new exit (range 5) 5715 | -9/Materials | Repaired Broken Autogun 6328 | -9/Materials | Discovered new exit (range 9) 6787 | -9/Materials | Entered Mines 6788 | -9/Mines | A Derelict revealed a hidden shortcut to a safe place 6909 | -9/Mines | Received a Mining Laser from a helpful Derelict 7048 | -9/Mines | Assembled infested the area 7939 | -9/Mines | Discovered new exit (range 13) 7974 | -9/Mines | Entered Materials 7974 | -8/Materials | Evolved 2 slots: Propulsion x1, Utility x1 8427 | -8/Materials | Build established: Scavenger-Tank 9542 | -8/Materials | Discovered new exit (range 15) 9927 | -8/Materials | Discovered new exit (range 11) 10379 | -8/Materials | Discovered new exit (range 16) 10402 | -8/Materials | Learned Factory scanalyzer intel 10434 | -8/Materials | Learned location of Lower Caves (-6) 10473 | -8/Materials | Learned location of Lower Caves (-7) 10480 | -8/Materials | Learned 12 Factory zone layouts 10487 | -8/Materials | Learned Factory trap positions 10503 | -8/Materials | Learned location of Extension (-4) 10545 | -8/Materials | Garrison activated, responded to threat 10564 | -8/Materials | Build established: Tank 10637 | -8/Materials | Identified exit to Garrison 10637 | -8/Materials | Entered Garrison 10808 | -8/Garrison | Rescued a captive Derelict 10841 | -8/Garrison | Triggered checkpoint 10898 | -8/Garrison | Garrison Relay disabled 11147 | -8/Garrison | Discovered new exit (range 10) 11167 | -8/Garrison | Build established: Scavenger-Tank 11309 | -8/Garrison | Garrison Relay disabled 11524 | -8/Garrison | Entered Materials 11525 | -8/Materials | Identified exit to Factory 11936 | -8/Materials | Lost 3 parts (1n1u1w) 12037 | -8/Materials | Lost 3 parts (3n) 12265 | -8/Materials | Discovered exit to Factory (range 3) 12428 | -8/Materials | Repaired Lgt. Treads 12480 | -8/Materials | Repaired Adv. Beam Cannon 12690 | -8/Materials | Met 7R-MNS 12789 | -8/Materials | Build established: Tank 13237 | -8/Materials | Garrison activated, responded to threat 13651 | -8/Materials | Learned Storage stockpile data 13745 | -8/Materials | Learned location of 2 exits from Factory 13779 | -8/Materials | Learned 2 Lower Caves zone layouts 13805 | -8/Materials | Learned Factory machine intel 13843 | -8/Materials | Learned location of 3 exits from Factory 14734 | -8/Materials | Entered Factory 14734 | -7/Factory | Evolved 2 slots: Propulsion x1, Utility x1 14735 | -7/Factory | Caught up to 7R-MNS 14735 | -7/Factory | Identified exit to Storage 14736 | -7/Factory | Identified exit to Lower Caves 14736 | -7/Factory | Identified exit to Factory 14738 | -7/Factory | Loaded intel: 115 trap records 14739 | -7/Factory | Loaded intel: 267 machine locations 14740 | -7/Factory | Loaded intel: 4 scanalyzer locations 14972 | -7/Factory | Attacked by 7R-MNS 15059 | -7/Factory | 7R-MNS lamented failing the tripod run 15059 | -7/Factory | Destroyed 7R-MNS 15268 | -7/Factory | Fabricated Huge Storage Unit? 15306 | -7/Factory | Lost 3 parts (1n1u1w) 16278 | -7/Factory | Entered Lower Caves 16327 | -7/Lower Caves | Spotted B-75 Beast 16358 | -7/Lower Caves | Destroyed B-75 Beast 16383 | -7/Lower Caves | Lost 5 parts (3n2u) 16515 | -7/Lower Caves | Met a Warlord Commander 16516 | -7/Lower Caves | Learned location of Warlord (-4) 16517 | -7/Lower Caves | Warlord Commander delivered Encrypted Comm Array 16565 | -7/Lower Caves | Learned Factory machine intel 16624 | -7/Lower Caves | Build established: Scavenger-Tank 17107 | -7/Lower Caves | Lost 3 parts (2n1u) 17793 | -7/Lower Caves | Discovered new exit (range 12) 17821 | -7/Lower Caves | Entered another Lower Caves area 18114 | -7/Lower Caves | Lost 3 parts (1n2w) 18535 | -7/Lower Caves | Encountered a Warlord checkpoint 18562 | -7/Lower Caves | Attracted the attention of an 0b10 outpost 18626 | -7/Lower Caves | Lost 3 allies 18655 | -7/Lower Caves | Lost 3 parts (1p1n1w) 18889 | -7/Lower Caves | Build established: Tank 18916 | -7/Lower Caves | Discovered new exit (range 9) 18948 | -7/Lower Caves | Learned Factory machine intel 19208 | -7/Lower Caves | Entered Zion 19208 | -7/Zion | Accompanied by 2 allies 19272 | -7/Zion | Given the Hacking Drone Bay 19434 | -7/Zion | Discovered new exit (range 12) 19648 | -7/Zion | Given A8's code to call for help 19832 | -7/Zion | Learned 8 Factory zone layouts 20170 | -7/Zion | Received a hallucinogenic algorithm 20333 | -7/Zion | Met Imprinter 20506 | -7/Zion | Learned 12 Factory zone layouts 20611 | -7/Zion | Learned Factory emergency access door positions 21536 | -7/Zion | Entered Proximity Caves 21536 | -6/Proximity Caves | Accompanied by 2 allies 21920 | -6/Proximity Caves | Spotted B-75 Beast 22189 | -6/Proximity Caves | Destroyed B-75 Beast 22638 | -6/Proximity Caves | Learned location of 1 exit from Lower Caves 22859 | -6/Proximity Caves | Build established: Gunner 23038 | -6/Proximity Caves | Learned Factory stockpile data 23038 | -6/Proximity Caves | Discovered exit to Factory (range 8) 23060 | -6/Proximity Caves | Entered Factory 23060 | -6/Factory | Evolved 2 slots: Propulsion x1, Utility x1 23061 | -6/Factory | Identified exit to Lower Caves 23061 | -6/Factory | Identified exit to Factory 23064 | -6/Factory | Loaded intel: 288 machine locations 23253 | -6/Factory | Garrison activated, responded to threat 23324 | -6/Factory | Core integrity fell below 50% 23337 | -6/Factory | Lost 15 parts (2p2n4u7w) 23357 | -6/Factory | Identified exit to Garrison 23363 | -6/Factory | Core integrity fell below 20% 23366 | -6/Factory | Entered Garrison 23402 | -6/Garrison | Destroyed by C-17 Slicer with Blade Saw Last Messages --------------- 23363_ Slammed into G-50 Soldier. LOCATION=GARRISON GOAL=ESCAPE 23375_ Triggered Stasis Trap. 23375_ A bubble of rippling energy engulfs the area. 23375_ Field strength at 94. 23376_ Field strength at 88. 23377_ Field strength at 82. 23378_ Field strength at 76. 23379_ Field strength at 70. 23380_ Field strength at 64. 23381_ Field strength at 58. 23382_ Field strength at 52. 23383_ Field strength at 46. 23384_ Field strength at 40. 23385_ Field strength at 34. 23385_ C-17 Slicer knocked back. 23385_ C-17 Slicer destroyed. 23385_ Knocked back. 23388_ Field strength at 20. Map ----- +----------------------------------------------------+ | ?????????????????????????????????????????????????? | | ?????????????????????????????????????????????????? | | ?????????????????????????????????????????????????? | | ?????????????????????????????????????????????????? | | ?????????????????????????????????????????????????? | | ?????????????????????????????????????????????????? | | ?????????????????????????????????????????????????? | | ?????????????????????????????????????????????????? | | ?????????????????????????????????????????????????? | | ?????????????????????????????????????????????????? | | ??????????????????##########?????????????????????? | | ??????????????????# #?????????????????????? | | ??????????????????#!!!!!!# #?????????????????????? | | ??????????????????########+######### #?????????? | | ?????????????????????????# ????? | | ?????????????????????????# /% ] ????? | | ?????????????????????????# ######## * ????? | | ?????????????????????????# #???????????#"""?????? | | ?????????????????????????# #????????????????????? | | ?????????????????????????#c #????????????????????? | | ????????????????########## #????????????????????? | | ????????????????# #????????????????????? | | ????????????????# #????????????????????? | | ????????????????# ##### ###????????????????????? | | ????????????????# #???#c#??????????????????????? | | ????????????????#####???#@#??????????????????????? | | ????????????????????????# #??????????????????????? | | ????????????????????????# #??????????????????????? | | ????????????????????????# #??????????????????????? | | ????????????????????????# #??????????????????????? | | ????????????????????????# #??????????????????????? | | ????????????????????????# #??????????????????????? | | ????????????????????????# #??????????????????????? | | ????????????????????????# #??????????????????????? | | ????????????????????????? ???????????????????????? | | ????????????????????????? ???????????????????????? | | ????????????????????????? ???????????????????????? | | ????????????????????????? ???????????????????????? | | ?????????????????????????#???????????????????????? | | ?????????????????????????????????????????????????? | | ?????????????????????????????????????????????????? | | ?????????????????????????????????????????????????? | | ?????????????????????????????????????????????????? | | ?????????????????????????????????????????????????? | | ?????????????????????????????????????????????????? | | ?????????????????????????????????????????????????? | | ?????????????????????????????????????????????????? | | ?????????????????????????????????????????????????? | | ?????????????????????????????????????????????????? | | ?????????????????????????????????????????????????? | +----------------------------------------------------+ Best States ------------- Heat Dissipation 64 Coolant Potential 65 Energy Generation 18 Energy Capacity 290 Matter Stores 300 Matter Capacity 300 Sight Range 16 Terrain Scan Range 16 Terrain Scan Density 10 Armor Coverage 375 Resistance: KI 20 Evasion (%) 55 Target Analysis 5 Recoil Reduction 5 Item Schematics ----------------- Huge Storage Unit | -10/Materials | Hacked Remote Datajack | -7/Zion | Archive Hpw. Shock Rifle | -7/Zion | Archive Imp. EM Pulse Cannon | -7/Zion | Archive Adv. Melee Analysis Suite | -7/Zion | Archive Recalibrator | -7/Zion | Archive EM Disruption Field | -7/Zion | Archive Mass Driver | -7/Zion | Archive Imp. Weapon Cycler | -7/Zion | Archive Dynamic Insulation System | -7/Zion | Archive Proton Cannon | -7/Zion | Archive Hvy. Laser | -7/Zion | Archive Enh. Optical Array | -7/Zion | Archive Robot Schematics ------------------ L-41 Fighter | -7/Zion | Archive K-01 Serf | -7/Zion | Archive A-02 Transporter | -7/Zion | Archive Fabricated ------------ Huge Storage Unit | x1 | -7/Factory Repaired ---------- Autogun | 4% | -9/Materials Autogun | 5% | -9/Materials Autogun | 39% | -9/Materials | Broken Lgt. Treads | 40% | -8/Materials Adv. Beam Cannon | 11% | -8/Materials Alien Tech Used ----------------- None Achievements -------------- None Challenges ------------ None Game ------ Seed ThiefAdvancedCannon Manual? 0 Play Time 02:48:07 Cumulative 144.0 hours Start 2025.05.25 @ 00:43:10 End 2025.05.27 @ 00:32:13 Sessions 5 Manual Loads 0 Difficulty Rogue Special Mode None Game No. 73 Rogue 73 Adventurer 0 Explorer 0 Win Type - Total 4 Types 3/0/1/0/0/0/0/0/0/0 Lore% 48 Gallery% 41 Achievement% 44 Wizard Run 0 Options --------- Layout 0 ASCII 0 Keyboard 1 Movement Vi Keybinds 0 Fullscreen 2 Font 24/Terminus Map View 76x50 Zoom Use 0% Tactical HUD 1 Map Filters NONE Filters NONE Steam 1 RUN: 5dcfb0d2-ee5e-415e-b46f-d9d6247689e7